bitfinex/quotes_SOLUSD_20250416
["timestamp","ask_amount","ask_price","bid_price","bid_amount"]
[1744789133378,1.5382,124.9,124.84,18.67964886]
[1744789133582,14.53873248,124.88,124.84,18.67964886]
[1744789135074,113.27468911,124.95,124.86,18.64964886]
[1744789135256,20.0,124.93,124.85,95.0359305]
[1744789135453,14.53873248,124.91,124.85,95.0359305]
[1744789135650,95.2817,124.96,124.89,33.18838134]
[1744789135956,95.2817,124.96,124.9,14.53873248]
[1744789135957,14.53873248,124.95,124.9,14.53873248]
[1744789137061,14.53873248,124.95,124.91,28.02017452]
[1744789138865,14.53873248,124.94,124.91,28.02017452]
[1744789139400,14.53873248,124.93,124.91,20.01441037]
[1744789139695,14.53873248,124.92,124.91,20.01441037]
[1744789139980,26.0,124.95,124.91,20.01441037]
[1744789140587,14.53873248,124.93,124.91,20.01441037]
[1744789141087,26.0,124.95,124.91,20.01441037]
[1744789141274,14.60173248,124.97,124.91,21.67521037]
[1744789141454,0.063,124.97,124.93,42.55442126]
[1744789141853,14.60173248,124.97,124.93,42.55442126]
[1744789142371,14.60173248,124.97,124.93,28.01568878]
[1744789142576,0.063,124.97,124.93,42.55442126]
[1744789142888,0.063,124.97,124.94,14.53873248]
[1744789143075,0.063,124.97,124.95,14.53873248]
[1744789143690,0.063,124.98,124.95,14.53873248]
[1744789143897,0.063,124.98,124.96,22.54129329]
[1744789144102,0.063,124.98,124.96,8.00256081]
[1744789144872,14.60173248,124.98,124.96,8.00256081]
[1744789145074,0.063,124.98,124.96,8.00256081]
[1744789146189,0.063,124.98,124.95,28.01053248]
[1744789146796,14.53873248,124.96,124.95,28.01053248]
[1744789147275,14.53873248,124.97,124.95,28.01053248]
[1744789147974,14.53873248,124.97,124.92,101.23192919]
[1744789148294,14.60173248,124.98,124.93,14.53873248]
[1744789148876,0.063,124.98,124.94,14.53873248]
[1744789150093,0.063,124.98,124.95,28.01120448]
[1744789151294,14.60173248,124.98,124.95,28.01120448]
[1744789151797,14.53873248,124.97,124.95,28.01120448]
[1744789152175,14.53873248,124.97,124.93,28.01568878]
[1744789153200,14.53873248,124.95,124.93,28.01568878]
[1744789153878,0.063,124.98,124.93,28.01568878]
[1744789153879,14.53873248,124.97,124.93,28.01568878]
[1744789154076,26.063,124.98,124.93,68.03810133]
[1744789154397,40.60173248,124.98,124.93,82.57683381]
[1744789154570,14.53873248,124.97,124.93,68.03810133]
[1744789157893,14.53873248,124.96,124.93,68.03810133]
[1744789159304,14.53873248,124.97,124.93,60.03361882]
[1744789160214,14.53873248,124.96,124.93,60.03361882]
[1744789162816,14.53873248,124.96,124.93,20.01120627]
[1744789163117,14.53873248,124.95,124.93,20.01120627]
[1744789163498,14.53873248,124.94,124.92,8.00512327]
[1744789163889,14.53873248,124.94,124.92,28.01793146]
[1744789164308,14.53873248,124.94,124.9,86.70409241]
[1744789165706,14.53873248,124.93,124.9,28.02241793]
[1744789165908,8.2401,124.97,124.9,28.02241793]
[1744789165909,14.53873248,124.91,124.9,28.02241793]
[1744789166091,14.53873248,124.91,124.88,8.00768737]
[1744789166290,14.53873248,124.89,124.88,8.00768737]
[1744789166492,14.53873248,124.89,124.86,0.03]
[1744789166793,14.53873248,124.87,124.86,0.03]
[1744789168712,14.53873248,124.85,124.84,8.04025312]
[1744789169693,14.53873248,124.85,124.84,0.03]
[1744789173625,40.53873248,124.85,124.84,0.03]
[1744789175411,26.0,124.83,124.8,0.03]
[1744789175617,14.53873248,124.81,124.8,0.03]
[1744789176004,26.0,124.83,124.8,0.03]
[1744789176211,14.53873248,124.81,124.8,0.03]
[1744789189309,29.07746496,124.81,124.8,0.03]
[1744789190705,29.07746496,124.81,124.79,0.03]
[1744789190911,26.0,124.77,124.76,0.03]
[1744789191117,40.53873248,124.77,124.76,0.03]
[1744789191610,123.43873248,124.77,124.76,0.03]
[1744789191809,20.0,124.76,124.75,0.03]
[1744789192014,26.0,124.73,124.71,0.03]
[1744789192209,40.53873248,124.72,124.71,0.03]
[1744789192411,26.0,124.72,124.71,0.03]
[1744789192636,40.53873248,124.72,124.71,0.03]
[1744789200540,14.53873248,124.72,124.71,0.03]
[1744789200736,343.82,124.79,124.72,18.64964886]
[1744789200939,10.88,124.79,124.75,33.18838134]
[1744789201146,10.88,124.83,124.75,33.18838134]
[1744789201354,26.0,124.8,124.75,33.18838134]
[1744789201526,40.53873248,124.8,124.75,33.18838134]
[1744789201729,14.53873248,124.8,124.75,33.18838134]
[1744789202143,40.53873248,124.8,124.75,33.18838134]
[1744789202749,10.88,124.83,124.77,25.25454886]
[1744789202922,14.53873248,124.81,124.77,25.25454886]
[1744789203323,14.53873248,124.79,124.77,6.6049]
[1744789203664,14.53873248,124.81,124.77,25.25454886]
[1744789204027,14.53873248,124.81,124.78,18.64964886]
[1744789204235,14.53873248,124.82,124.78,18.64964886]
[1744789204746,14.53873248,124.82,124.79,28.04711915]
[1744789205048,25.41873248,124.83,124.79,28.04711915]
[1744789205347,14.53873248,124.85,124.8,33.18838134]
[1744789205846,14.53873248,124.84,124.8,18.64964886]
[1744789206854,14.53873248,124.82,124.81,8.01217851]
[1744789208954,14.53873248,124.82,124.79,28.04711915]
[1744789211862,14.53873248,124.8,124.79,8.01346261]
[1744789212234,14.53873248,124.81,124.79,8.01346261]
[1744789212745,14.53873248,124.8,124.79,8.01346261]
[1744789212946,14.53873248,124.8,124.77,28.05156909]
[1744789215363,14.53873248,124.81,124.77,28.05156909]
[1744789216662,14.53873248,124.81,124.78,18.64964886]
[1744789216847,40.53873248,124.82,124.78,18.64964886]
[1744789217241,40.53873248,124.82,124.79,8.01346261]
[1744789217546,26.0,124.82,124.79,8.01346261]
[1744789217733,40.53873248,124.82,124.79,8.01346261]
[1744789217937,14.53873248,124.81,124.79,8.01346261]
[1744789220958,10.88,124.86,124.8,18.64964886]
[1744789221160,14.53873248,124.84,124.8,18.64964886]
[1744789221744,0.063,124.89,124.83,14.53873248]
[1744789221940,0.063,124.89,124.85,18.64964886]
[1744789221941,14.60173248,124.89,124.85,18.64964886]
[1744789222760,0.063,124.89,124.85,14.53873248]
[1744789222952,0.063,124.89,124.86,28.03139515]
[1744789223837,0.063,124.89,124.87,18.64964886]
[1744789224033,0.063,124.89,124.87,33.18838134]
[1744789224953,0.063,124.89,124.88,8.00768737]
[1744789225458,14.60173248,124.89,124.87,8.00808197]
[1744789225664,0.063,124.89,124.87,8.00808197]
[1744789226159,14.60173248,124.89,124.87,8.00808197]
[1744789227264,14.60173248,124.89,124.86,28.03085406]
[1744789228568,14.53873248,124.88,124.86,8.00897004]
[1744789228744,14.53873248,124.87,124.86,8.00897004]
[1744789229568,14.53873248,124.87,124.84,8.01025312]
[1744789229762,14.53873248,124.85,124.84,8.01025312]
[1744789230768,14.53873248,124.85,124.82,28.04037222]
[1744789230964,14.53873248,124.86,124.83,18.64964886]
[1744789231964,14.53873248,124.85,124.83,18.64964886]
[1744789232169,14.53873248,124.85,124.82,28.04037222]
[1744789233261,14.53873248,124.84,124.82,8.01153661]
[1744789234571,14.53873248,124.83,124.8,8.01282051]
[1744789234753,14.53873248,124.81,124.8,8.01282051]
[1744789235355,14.53873248,124.81,124.79,8.01346261]
[1744789236071,14.53873248,124.82,124.79,28.04711915]
[1744789236264,14.53873248,124.83,124.8,18.64964886]
[1744789236571,26.0,124.84,124.8,18.64964886]
[1744789236572,14.53873248,124.82,124.8,18.64964886]
[1744789237148,14.53873248,124.83,124.8,18.64964886]
[1744789237677,14.53873248,124.83,124.81,8.01217851]
[1744789241155,26.0,124.86,124.81,8.01217851]
[1744789241358,14.53873248,124.83,124.81,8.01217851]
[1744789242969,14.53873248,124.82,124.81,8.01217851]
[1744789244599,14.53873248,124.82,124.79,28.04711915]
[1744789245376,14.53873248,124.81,124.79,28.04711915]
[1744789245758,14.53873248,124.81,124.79,8.01346261]
[1744789246459,14.53873248,124.81,124.77,28.05118042]
[1744789247571,14.53873248,124.81,124.78,18.64964886]
[1744789247783,14.53873248,124.82,124.78,18.64964886]
[1744789248285,90.6577,124.85,124.78,33.18838134]
[1744789248487,14.53873248,124.83,124.79,28.04711915]
[1744789248659,14.53873248,124.84,124.8,18.64964886]
[1744789248859,14.53873248,124.85,124.8,33.18838134]
[1744789249273,25.47873248,124.86,124.8,33.18838134]
[1744789249563,25.47873248,124.86,124.81,16.05523248]
[1744789249865,1.6262,124.89,124.83,18.64964886]
[1744789250065,14.53873248,124.87,124.83,18.64964886]
[1744789250468,14.53873248,124.86,124.83,18.64964886]
[1744789250679,14.53873248,124.86,124.84,8.01025312]
[1744789252184,14.53873248,124.85,124.84,8.01025312]
[1744789252674,14.53873248,124.86,124.84,8.01025312]
[1744789252862,14.53873248,124.86,124.82,28.0391749]
[1744789254299,14.53873248,124.85,124.82,28.0391749]
[1744789255266,14.53873248,124.86,124.82,28.0391749]
[1744789255477,14.53873248,124.85,124.82,28.0391749]
[1744789260403,14.53873248,124.88,124.82,28.0391749]
[1744789260573,14.53873248,124.86,124.82,28.0391749]
[1744789261400,14.53873248,124.86,124.83,18.64964886]
[1744789262396,14.53873248,124.86,124.84,8.01025312]
[1744789262771,14.53873248,124.85,124.84,8.01025312]
[1744789264180,14.53873248,124.85,124.8,20.03159045]
[1744789264491,14.53873248,124.83,124.8,28.04441096]
[1744789264694,14.53873248,124.81,124.8,8.01282051]
[1744789264897,14.53873248,124.81,124.78,8.01410482]
[1744789265101,14.53873248,124.8,124.78,8.01410482]
[1744789266503,14.53873248,124.8,124.76,28.05330392]
[1744789266798,26.0,124.82,124.76,28.05330392]
[1744789266974,14.53873248,124.8,124.76,28.05330392]
[1744789272993,14.53873248,124.81,124.78,28.04936688]
[1744789273177,9.32143846,124.82,124.78,28.04936688]
[1744789273377,9.32143846,124.81,124.78,28.04936688]
[1744789273795,9.32143846,124.8,124.78,28.04936688]
[1744789273977,9.32143846,124.8,124.78,8.01410482]
[1744789275004,9.32143846,124.8,124.76,28.05334926]
[1744789277496,9.32143846,124.8,124.77,18.64964886]
[1744789277685,110.5166,124.84,124.77,27.97108732]
[1744789277887,9.32143846,124.82,124.77,27.97108732]
[1744789278390,27.6166,124.84,124.79,18.64964886]
[1744789278588,20.26143846,124.85,124.81,18.64964886]
[1744789278910,9.32143846,124.84,124.82,8.01153661]
[1744789279201,10.94,124.85,124.82,8.01153661]
[1744789279202,9.32143846,124.83,124.82,8.01153661]
[1744789281101,9.32143846,124.83,124.81,20.03040374]
[1744789281303,9.32143846,124.84,124.81,20.03040374]
[1744789283492,26.0,124.86,124.82,27.97108732]
[1744789284082,17.4534,124.89,124.82,27.97108732]
[1744789284297,9.32143846,124.87,124.82,18.64964886]
[1744789284487,9.32143846,124.87,124.82,27.97108732]
[1744789284879,9.32143846,124.86,124.82,27.97108732]
[1744789285202,9.32143846,124.85,124.83,8.01089481]
[1744789285382,9.32143846,124.86,124.83,28.03813185]
[1744789287299,9.32143846,124.85,124.83,28.03813185]
[1744789287495,9.32143846,124.86,124.83,28.03813185]
[1744789289599,9.32143846,124.84,124.83,28.03813185]
[1744789290384,9.32143846,124.85,124.83,28.03813185]
[1744789293509,9.32143846,124.84,124.81,28.04262478]
[1744789293803,9.32143846,124.82,124.81,28.04262478]
[1744789294415,9.32143846,124.83,124.81,28.04262478]
[1744789294716,9.32143846,124.85,124.81,28.04262478]
[1744789295206,9.32143846,124.85,124.82,18.64964886]
[1744789295706,9.32143846,124.85,124.83,8.01089481]
[1744789298110,9.32143846,124.86,124.83,28.03813185]
[1744789298415,9.32143846,124.87,124.83,28.03813185]
[1744789299118,9.32143846,124.86,124.83,28.03813185]
[1744789301220,38.5671,124.89,124.83,28.03813185]
[1744789301515,9.32143846,124.86,124.83,28.03813185]
[1744789301717,9.32143846,124.85,124.83,28.03813185]
[1744789301918,9.32143846,124.84,124.83,28.03813185]
[1744789302714,9.32143846,124.85,124.83,28.03813185]
[1744789303313,9.32143846,124.86,124.83,28.03813185]
[1744789303512,9.32143846,124.87,124.83,28.03813185]
[1744789303712,9.32143846,124.86,124.83,28.03813185]
[1744789306315,38.5671,124.89,124.83,28.03813185]
[1744789306496,9.32143846,124.86,124.83,28.03813185]
[1744789307197,9.32143846,124.87,124.84,18.64964886]
[1744789307517,9.32143846,124.88,124.84,18.64964886]
[1744789308612,9.32143846,124.88,124.85,28.03364036]
[1744789310334,0.063,124.9,124.88,18.64964886]
[1744789310505,0.063,124.9,124.89,9.32143846]
[1744789310506,1e-08,124.9,124.89,9.32143846]
[1744789310705,1e-08,124.91,124.89,35.97813352]
[1744789310999,1e-08,124.91,124.9,27.97108732]
[1744789311206,1e-08,124.91,124.9,33.18166288]
[1744789313121,1e-08,124.91,124.9,41.188068]
[1744789313325,1e-08,124.91,124.9,26.65605398]
[1744789315618,1e-08,124.91,124.9,8.00640512]
[1744789317310,1e-08,124.91,124.89,8.0070462]
[1744789318925,14.53201402,124.9,124.89,8.0070462]
[1744789320323,1e-08,124.91,124.89,8.0070462]
[1744789321123,14.53201403,124.91,124.89,8.0070462]
[1744789322613,14.53201402,124.9,124.89,8.0070462]
[1744789322812,14.53201403,124.91,124.89,8.0070462]
[1744789323637,1e-08,124.91,124.89,8.0070462]
[1744789323803,1e-08,124.91,124.9,33.18166288]
[1744789324427,1e-08,124.91,124.9,34.76536288]
[1744789325531,1e-08,124.91,124.9,42.771768]
[1744789326134,1e-08,124.91,124.9,41.188068]
[1744789327129,1e-08,124.91,124.9,8.00640512]
[1744789327331,14.53201403,124.91,124.9,8.00640512]
[1744789327634,14.53201403,124.91,124.89,8.0070462]
[1744789328324,1e-08,124.91,124.89,8.0070462]
[1744789329815,14.53201403,124.91,124.89,8.0070462]
[1744789330338,1e-08,124.91,124.89,8.0070462]
[1744789330516,1e-08,124.91,124.9,18.64964886]
[1744789330837,1e-08,124.91,124.89,8.0070462]
[1744789332837,1e-08,124.91,124.89,22.53906022]
[1744789333045,1e-08,124.91,124.89,8.0070462]
[1744789336949,14.53201402,124.9,124.89,8.0070462]
[1744789337144,14.53201403,124.91,124.89,8.0070462]
[1744789338145,14.53201403,124.91,124.87,28.02837797]
[1744789339545,14.53201402,124.9,124.87,28.02837797]
[1744789339844,14.53201402,124.88,124.87,8.00832866]
[1744789340547,14.53201402,124.88,124.85,46.68328922]
[1744789340756,14.53201402,124.88,124.85,28.03364036]
[1744789340954,26.00000001,124.91,124.85,28.03364036]
[1744789341129,14.53201402,124.88,124.85,28.03364036]
[1744789343732,26.0,124.89,124.86,18.64964886]
[1744789343946,14.53201403,124.91,124.86,33.18166288]
[1744789344626,14.53201403,124.91,124.87,8.00832866]
[1744789345541,14.53201403,124.91,124.87,28.02915031]
[1744789345856,1e-08,124.91,124.88,33.18166288]
[1744789346656,1e-08,124.91,124.89,22.53906022]
[1744789346837,1e-08,124.91,124.9,33.18166288]
[1744789347548,1e-08,124.91,124.89,8.0070462]
[1744789348332,1e-08,124.91,124.89,22.53906022]
[1744789350047,1e-08,124.91,124.89,8.0070462]
[1744789350241,1e-08,124.91,124.9,18.64964886]
[1744789350545,1e-08,124.91,124.9,33.18166288]
[1744789351051,1e-08,124.91,124.9,26.65605398]
[1744789354453,1e-08,124.91,124.9,41.188068]
[1744789355552,0.063,124.95,124.9,101.23610643]
[1744789355740,0.063,124.95,124.94,33.18166288]
[1744789356636,0.063,124.95,124.94,18.64964886]
[1744789356832,0.063,124.95,124.94,33.18166288]
[1744789357254,0.063,124.95,124.94,18.64964886]
[1744789359366,0.063,124.95,124.94,8.00384184]
[1744789359661,14.59501402,124.95,124.94,8.00384184]
[1744789361269,14.59501402,124.95,124.92,28.01714728]
[1744789365946,16.09861402,124.95,124.92,8.00512327]
[1744789366159,14.53201402,124.94,124.92,8.00512327]
[1744789366354,0.063,124.95,124.92,28.01793146]
[1744789367070,0.063,124.95,124.92,42.54994548]
[1744789367242,0.063,124.95,124.93,18.64964886]
[1744789367445,0.063,124.95,124.94,8.00384184]
[1744789371678,14.59501402,124.95,124.94,8.00384184]
[1744789373071,0.063,124.95,124.94,8.00384184]
[1744789373651,0.063,124.95,124.93,33.18166288]
[1744789375178,0.063,124.95,124.93,18.64964886]
[1744789376078,0.063,124.95,124.94,26.6534907]
[1744789376884,0.063,124.95,124.94,8.00384184]
[1744789377883,0.063,124.95,124.94,17.30467136]
[1744789379283,0.063,124.95,124.94,8.00384184]
[1744789381981,0.063,124.95,124.94,17.30467136]
[1744789382363,1e-08,124.96,124.94,18.91307136]
[1744789382579,1e-08,124.97,124.96,18.64964886]
[1744789382879,1e-08,124.97,124.96,35.95303919]
[1744789383268,1e-08,124.99,124.96,92.81944123]
[1744789383470,1e-08,124.99,124.98,27.95047838]
[1744789383877,1e-08,124.99,124.98,18.64964886]
[1744789384379,1e-08,124.99,124.96,28.00896285]
[1744789384569,1e-08,124.99,124.97,18.64964886]
[1744789384964,1e-08,124.99,124.98,8.0012802]
[1744789386661,14.5229719,124.99,124.98,8.0012802]
[1744789386860,14.5229719,124.99,124.96,28.00896285]
[1744789387178,1e-08,124.99,124.96,28.00896285]
[1744789394973,1e-08,124.99,124.97,18.64964886]
[1744789395311,1e-08,124.99,124.98,33.17262075]
[1744789395496,1e-08,125.0,124.99,41.1732608]
[1744789395978,1e-08,125.0,124.99,52.0332608]
[1744789401298,1e-08,125.01,124.99,52.0332608]
[1744789401490,1e-08,125.03,125.01,18.64964886]
[1744789401687,1e-08,125.03,125.02,33.17262075]
[1744789402386,1e-08,125.03,125.02,26.64836906]
[1744789402585,1e-08,125.03,125.02,41.17134095]
[1744789402808,1e-08,125.03,125.02,26.64836906]
[1744789403188,1e-08,125.03,125.02,41.17134095]
[1744789405600,1e-08,125.04,125.03,14.52297189]
[1744789406679,1e-08,125.04,125.03,18.64964886]
[1744789407904,1e-08,125.04,125.03,26.64772932]
[1744789410488,1e-08,125.04,125.03,41.17070121]
[1744789411708,1e-08,125.05,125.04,14.52297189]
[1744789412710,1e-08,125.05,125.04,22.5204127]
[1744789412900,0.063,125.08,125.04,101.15086769]
[1744789413100,0.063,125.08,125.06,18.64964886]
[1744789414794,0.063,125.08,125.07,7.9955225]
[1744789415110,14.58597189,125.08,125.07,7.9955225]
[1744789416314,0.063,125.08,125.05,46.63845332]
[1744789420213,0.063,125.08,125.05,61.16142521]
[1744789420415,0.063,125.08,125.07,14.52297189]
[1744789420606,0.063,125.1,125.08,18.64964886]
[1744789421211,0.063,125.1,125.06,9.27747626]
[1744789421518,0.063,125.1,125.07,18.64964886]
[1744789422716,0.063,125.1,125.08,7.99488327]
[1744789426328,10.92367626,125.12,125.08,7.99488327]
[1744789426329,1e-08,125.12,125.09,27.92712512]
[1744789426495,1e-08,125.13,125.11,9.27747626]
[1744789426819,1e-08,125.13,125.12,9.27747626]
[1744789427021,1e-08,125.13,125.12,17.26980362]
[1744789427613,0.03,125.16,125.13,18.64964886]
[1744789428921,9.30747626,125.16,125.12,27.97314577]
[1744789429100,0.03,125.16,125.12,27.97314577]
[1744789429307,14.51631661,125.16,125.12,27.97314577]
[1744789431532,0.03,125.16,125.12,27.97314577]
[1744789431717,14.48631661,125.15,125.12,27.97314577]
[1744789432728,14.48631661,125.14,125.12,27.97314577]
[1744789437432,14.48631661,125.15,125.12,27.97314577]
[1744789437627,14.48631661,125.14,125.12,27.97314577]
[1744789438123,14.48631661,125.15,125.12,27.97314577]
[1744789440428,40.51631661,125.16,125.12,27.97314577]
[1744789440627,26.03,125.16,125.12,27.97314577]
[1744789441134,40.51631661,125.16,125.12,27.97314577]
[1744789441638,26.03,125.16,125.12,27.97314577]
[1744789441830,40.51631661,125.16,125.12,27.97314577]
[1744789442031,14.48631661,125.15,125.12,27.97314577]
[1744789442941,40.51631661,125.16,125.12,27.97314577]
[1744789444039,14.48631661,125.15,125.12,27.97314577]
[1744789445036,0.03,125.16,125.14,14.48631661]
[1744789445215,14.51631661,125.21,125.15,33.13596547]
[1744789445419,0.03,125.21,125.16,14.48631661]
[1744789445618,14.51631661,125.21,125.16,14.48631661]
[1744789445829,14.51631661,125.21,125.18,27.95973797]
[1744789446536,14.48631661,125.19,125.18,7.98849656]
[1744789447920,14.48631661,125.19,125.14,27.96867507]
[1744789448240,14.48631661,125.17,125.14,27.96867507]
[1744789451140,9.26848221,125.17,125.14,27.96867507]
[1744789451646,26.0,125.2,125.14,27.96867507]
[1744789451839,9.26848221,125.18,125.14,67.92392518]
[1744789454627,9.26848221,125.17,125.14,67.92392518]
[1744789456548,9.26848221,125.18,125.14,67.92392518]
[1744789457642,9.26848221,125.16,125.14,27.96867507]
[1744789459651,9.26848221,125.16,125.12,46.62279463]
[1744789461450,9.26848221,125.15,125.12,27.97314577]
[1744789461624,9.26848221,125.14,125.12,19.98081841]
[1744789462335,9.26848221,125.15,125.12,19.98081841]
[1744789463445,9.26848221,125.14,125.12,19.98081841]
[1744789467351,9.26848221,125.15,125.12,19.98081841]
[1744789467733,9.26848221,125.14,125.12,19.98081841]
[1744789471251,9.26848221,125.14,125.11,7.99296618]
[1744789471454,9.26848221,125.12,125.11,7.99296618]
[1744789472663,10.87638221,125.12,125.09,7.99424414]
[1744789472963,9.26848221,125.1,125.08,0.063]
[1744789475755,72.34241105,125.09,125.08,0.063]
[1744789475934,83.18241105,125.09,125.08,0.063]
[1744789477155,46.10848221,125.09,125.08,0.063]
[1744789478050,9.26848221,125.1,125.08,0.063]
[1744789478251,9.26848221,125.11,125.08,0.063]
[1744789478437,26.0,125.1,125.08,0.063]
[1744789480948,35.26848221,125.1,125.08,0.063]
[1744789481148,9.26848221,125.09,125.08,0.063]
[1744789482867,35.26848221,125.09,125.08,0.063]
[1744789483165,72.34241105,125.09,125.08,0.063]
[1744789485065,72.34241105,125.09,125.06,0.063]
[1744789485066,20.0,125.08,125.06,0.063]
[1744789485384,25.37750164,125.07,125.06,0.063]
[1744789485867,26.0,125.05,125.01,0.063]
[1744789486169,14.51750164,125.03,125.01,0.063]
[1744789492165,26.0,125.05,125.01,33.2301505]
[1744789492361,25.37750164,125.06,125.01,33.2301505]
[1744789492560,10.86,125.06,125.02,14.51750164]
[1744789492865,14.51750164,125.07,125.02,14.51750164]
[1744789493071,14.51750164,125.07,125.01,18.71264886]
[1744789493274,14.51750164,125.06,125.01,33.2301505]
[1744789493571,14.51750164,125.06,125.02,27.99552071]
[1744789493772,14.51750164,125.05,125.02,27.99552071]
[1744789494075,14.51750164,125.04,125.02,27.99552071]
[1744789495483,14.51750164,125.04,125.02,19.99680051]
[1744789495979,14.51750164,125.05,125.02,19.99680051]
[1744789496471,14.51750164,125.04,125.02,19.99680051]
[1744789497456,14.51750164,125.04,125.01,0.063]
[1744789497962,20.0,125.08,125.01,0.063]
[1744789498274,1.6404,125.09,125.03,18.64964886]
[1744789498451,26.0,125.09,125.03,33.1671505]
[1744789498775,40.51750164,125.09,125.04,14.51750164]
[1744789499476,14.51750164,125.08,125.05,27.98880446]
[1744789500480,14.51750164,125.1,125.06,18.64964886]
[1744789501383,93.76,125.14,125.08,18.64964886]
[1744789501672,14.51750164,125.13,125.09,27.9798545]
[1744789501977,25.37750164,125.14,125.09,42.49735614]
[1744789502651,14.51750164,125.13,125.09,27.9798545]
[1744789503379,14.51750164,125.11,125.09,27.9798545]
[1744789503579,14.51750164,125.1,125.08,7.99488327]
[1744789503880,14.51750164,125.09,125.08,7.99488327]
[1744789505180,14.51750164,125.09,125.07,19.98864705]
[1744789505376,14.51750164,125.11,125.07,19.98864705]
[1744789505676,26.0,125.13,125.08,33.1671505]
[1744789505881,14.51750164,125.13,125.08,33.1671505]
[1744789506787,14.51750164,125.13,125.09,14.51750164]
[1744789506969,25.37750164,125.14,125.1,27.97761789]
[1744789507170,14.51750164,125.13,125.1,27.97761789]
[1744789507780,25.37750164,125.14,125.1,27.97761789]
[1744789507989,10.86,125.14,125.1,27.97761789]
[1744789508180,25.37750164,125.14,125.1,27.97761789]
[1744789508584,1.5275,125.18,125.11,18.64964886]
[1744789508770,14.51750164,125.13,125.1,27.97761789]
[1744789509087,14.51750164,125.14,125.1,27.97761789]
[1744789510265,14.51750164,125.12,125.1,27.97761789]
[1744789510964,14.51750164,125.12,125.08,46.63174031]
[1744789511964,14.51750164,125.09,125.08,27.98209145]
[1744789512589,14.51750164,125.09,125.08,7.99488327]
[1744789513099,29.03500328,125.09,125.04,27.9907774]
[1744789513268,25.35750164,125.09,125.04,27.9907774]
[1744789513470,14.51750164,125.05,125.04,27.9907774]
[1744789513670,14.51750164,125.05,125.04,7.99744081]
[1744789514488,26.0,125.06,125.04,27.99104285]
[1744789514785,14.51750164,125.06,125.04,27.99104285]
[1744789515097,14.51750164,125.05,125.01,0.063]
[1744789515990,14.51750164,125.06,125.01,14.58050164]
[1744789516377,14.51750164,125.08,125.03,33.1671505]
[1744789516579,10.84,125.09,125.03,33.1671505]
[1744789516897,14.51750164,125.07,125.03,14.51750164]
[1744789517077,14.51750164,125.08,125.03,14.51750164]
[1744789517283,14.51750164,125.07,125.04,27.99104285]
[1744789517791,14.51750164,125.08,125.04,27.99104285]
[1744789518795,14.51750164,125.11,125.07,18.64964886]
[1744789518971,25.37750164,125.13,125.09,18.64964886]
[1744789519167,10.86,125.13,125.1,27.97761789]
[1744789519381,25.37750164,125.13,125.1,27.97761789]
[1744789519774,14.51750164,125.11,125.1,27.97761789]
[1744789519988,14.51750164,125.11,125.1,7.99360511]
[1744789521372,14.51750164,125.11,125.08,19.98718384]
[1744789521683,14.51750164,125.09,125.08,19.98718384]
[1744789522381,14.51750164,125.09,125.07,7.9955225]
[1744789522587,14.51750164,125.08,125.07,7.9955225]
[1744789523404,14.51750164,125.08,125.04,27.99054927]
[1744789523585,14.51750164,125.07,125.04,27.99054927]
[1744789524401,14.51750164,125.09,125.05,18.64964886]
[1744789524600,14.51750164,125.1,125.05,18.64964886]
[1744789524987,14.51750164,125.08,125.05,18.64964886]
[1744789525492,14.51750164,125.08,125.06,7.99616184]
[1744789525886,14.51750164,125.09,125.06,27.98656644]
[1744789526093,40.51750164,125.1,125.06,27.98656644]
[1744789526400,14.51750164,125.11,125.07,18.64964886]
[1744789527522,40.51750164,125.12,125.08,27.98209145]
[1744789527687,14.51750164,125.12,125.08,27.98209145]
[1744789529494,14.51750164,125.11,125.08,27.98209145]
[1744789529689,14.51750164,125.09,125.08,27.98209145]
[1744789530129,14.51750164,125.09,125.08,7.99488327]
[1744789531918,14.51750164,125.09,125.06,27.98601729]
[1744789532426,14.51750164,125.1,125.06,27.98601729]
[1744789532619,14.51750164,125.11,125.06,42.50351893]
[1744789533809,14.51750164,125.1,125.06,27.98601729]
[1744789534913,14.51750164,125.08,125.06,27.98601729]
[1744789535832,14.51750164,125.07,125.04,27.99104285]
[1744789536019,14.51750164,125.06,125.04,27.99104285]
[1744789536207,40.51750164,125.09,125.05,18.64964886]
[1744789537024,14.51750164,125.08,125.05,18.64964886]
[1744789537323,14.51750164,125.07,125.04,27.99104285]
[1744789542349,14.51750164,125.08,125.04,27.99104285]
[1744789542651,14.51750164,125.07,125.04,27.99104285]
[1744789546625,14.51750164,125.08,125.04,27.99104285]
[1744789548452,14.51750164,125.07,125.04,27.99104285]
[1744789548842,14.51750164,125.05,125.04,7.99744081]